fUSD/lending_fUSD_20241026
["ID","MTS","AMOUNT","RATE_DAILY","PERIOD"]
[340856074,1729950641937,-2165.97817613,0.0005,120]
[340856075,1729950641947,-248.57748068,0.0005,30]
[340856076,1729950641956,-24563.59955785,0.0005,120]
[340856077,1729950641965,-1207.90688456,0.0005,30]
[340856078,1729950641974,-755.62136044,0.0005,120]
[340856079,1729950641983,-479.8624818,0.0005,120]
[340856080,1729950641992,-1126.35295203,0.0005,2]
[340856081,1729950642001,-1058.60367342,0.0005,32]
[340856082,1729950642013,-1000.0,0.0005,24]
[340856083,1729950642023,-200.0,0.0005,3]
[340856084,1729950642032,-3939.52744504,0.0005,2]
[340856085,1729950642042,-1694.0,0.0005,120]
[340856086,1729950642054,-2000.00024878,0.0005,120]
[340856087,1729950642065,-211.0,0.0005,120]
[340856088,1729950642075,-250.0,0.0005,30]
[340856089,1729950642084,-154262.75560444,0.0005,120]
[340856090,1729950642096,-156.03,0.0005,120]
[340856091,1729950642105,-3207.0,0.0005,11]
[340856092,1729950642116,-1216.5720332,0.0005,5]
[340856093,1729950642125,-7500.0,0.0005,120]
[340856094,1729950642136,-7500.0,0.0005,120]
[340856095,1729950642146,-2232.95,0.0005,120]
[340856096,1729950642156,-627.66,0.0005,120]
[340856097,1729950642167,-151.0,0.0005,7]
[340856098,1729950642179,-151.588437,0.0005,120]
[340856099,1729950642189,-151.0,0.0005,120]
[340856100,1729950642198,-151.0,0.0005,120]
[340856101,1729950642207,-151.0,0.0005,120]
[340856102,1729950642216,-151.0,0.0005,120]
[340856103,1729950642225,-208.097844,0.0005,120]
[340856104,1729950642234,-179.6928844,0.0005,60]
[340856105,1729950642244,-151.0,0.0005,120]
[340856106,1729950642254,-151.0,0.0005,120]
[340856107,1729950642263,-151.0,0.0005,120]
[340856108,1729950642273,-151.0,0.0005,120]
[340856109,1729950642284,-151.0,0.0005,120]
[340856110,1729950642293,-151.0,0.0005,120]
[340856111,1729950642302,-151.0,0.0005,120]
[340856112,1729950642311,-151.0,0.0005,120]
[340856113,1729950642321,-151.0,0.0005,7]
[340856114,1729950642333,-297.756162,0.0005,7]
[340856115,1729950642343,-12500.0,0.0005,120]
[340856116,1729950642352,-193.430116,0.0005,120]
[340856117,1729950642363,-151.0,0.0005,120]
[340856118,1729950642372,-193.430116,0.0005,120]
[340856119,1729950642381,-2418.97,0.0005,120]
[340856120,1729950642390,-151.0,0.0005,120]
[340856121,1729950642402,-151.0,0.0005,120]
[340856122,1729950642412,-539.953584,0.0005,120]
[340856123,1729950642423,-151.0,0.0005,120]
[340856124,1729950642435,-539.953584,0.0005,120]
[340856125,1729950642445,-151.0,0.0005,120]
[340856126,1729950642456,-174.476946,0.0005,120]
[340856127,1729950642467,-174.476946,0.0005,120]
[340856128,1729950642477,-151.0,0.0005,120]
[340856129,1729950642486,-151.0,0.0005,120]
[340856130,1729950642495,-151.0,0.0005,120]
[340856131,1729950642503,-5000.0,0.0005,120]
[340856132,1729950642513,-5000.0,0.0005,120]
[340856133,1729950642522,-5000.0,0.0005,120]
[340856134,1729950642531,-5000.0,0.0005,120]
[340856135,1729950642540,-5000.0,0.0005,120]
[340856136,1729950642549,-5000.0,0.0005,120]
[340856137,1729950642558,-5000.0,0.0005,120]
[340856138,1729950642567,-5000.0,0.0005,120]
[340856139,1729950642576,-5000.0,0.0005,120]
[340856140,1729950642585,-5000.0,0.0005,120]
[340856141,1729950642595,-5000.0,0.0005,120]
[340856142,1729950642604,-5000.0,0.0005,120]
[340856143,1729950642614,-5000.0,0.0005,120]
[340856144,1729950642624,-5000.0,0.0005,120]
[340856145,1729950642633,-5000.0,0.0005,120]
[340856146,1729950642642,-5000.0,0.0005,120]
[340856147,1729950642651,-5000.0,0.0005,120]
[340856148,1729950642661,-5000.0,0.0005,120]
[340856149,1729950642670,-5000.0,0.0005,120]
[340856150,1729950642679,-5000.0,0.0005,120]
[340856151,1729950642689,-5000.0,0.0005,120]
[340856153,1729950642698,-5000.0,0.0005,120]
[340856154,1729950642707,-5000.0,0.0005,120]
[340856155,1729950642716,-5000.0,0.0005,120]
[340856156,1729950642725,-5000.0,0.0005,120]
[340856157,1729950642734,-5000.0,0.0005,120]
[340856158,1729950642743,-5000.0,0.0005,120]
[340856159,1729950642752,-5000.0,0.0005,120]
[340856160,1729950642761,-5000.0,0.0005,120]
[340856161,1729950642770,-5000.0,0.0005,120]
[340856162,1729950642780,-5000.0,0.0005,120]
[340856163,1729950642789,-5000.0,0.0005,120]
[340856164,1729950642798,-5000.0,0.0005,120]
[340856165,1729950642808,-5000.0,0.0005,120]
[340856166,1729950642817,-5000.0,0.0005,120]
[340856167,1729950642827,-5000.0,0.0005,120]
[340856168,1729950642836,-5000.0,0.0005,120]
[340856169,1729950642845,-5000.0,0.0005,120]
[340856170,1729950642854,-5000.0,0.0005,120]
[340856171,1729950642867,-151.0,0.0005,120]
[340856172,1729950642879,-5000.0,0.0005,120]
[340856173,1729950642888,-3444.517706,0.0005,120]
[340856174,1729950642898,-174.362886,0.0005,120]
[340856175,1729950642907,-174.362886,0.0005,120]
[340856176,1729950642916,-169.150758,0.0005,120]
[340856177,1729950642927,-169.150758,0.0005,120]
[340856178,1729950642936,-169.544829,0.0005,120]
[340856179,1729950642945,-169.544829,0.0005,120]
[340856180,1729950642956,-186.98732,0.0005,120]
[340856182,1729950642966,-186.98732,0.0005,120]
[340856183,1729950642976,-155.539807,0.0005,120]
[340856184,1729950642985,-151.0,0.0005,120]
[340856185,1729950642995,-151.0,0.0005,120]
[340856186,1729950643004,-223.153046,0.0005,120]
[340856187,1729950643017,-223.153046,0.0005,120]
[340856188,1729950643026,-226.895858,0.0005,120]
[340856189,1729950643036,-226.895858,0.0005,120]
[340856190,1729950643046,-151.0,0.0005,7]
[340856191,1729950643056,-151.0,0.0005,120]
[340856192,1729950643066,-224.223852,0.0005,120]
[340856193,1729950643075,-1980.0,0.00050038,120]
[340856194,1729950643085,-1252.0,0.00050038,120]
[340856195,1729950643095,-7500.0,0.0005025,120]
[340856196,1729950643105,-7500.0,0.0005025,120]
[340856197,1729950643117,-12500.0,0.0005025,120]
[340856198,1729950643126,-156.43,0.00050487,2]
[340856199,1729950643136,-7500.0,0.000505,120]
[340856200,1729950643145,-7500.0,0.000505,120]
[340856201,1729950643155,-12500.0,0.000505,120]
[340856202,1729950643164,-576.314,0.0005075,120]
[340856203,1729950643174,-576.315,0.0005075,120]
[340856204,1729950643183,-576.314,0.0005075,120]
[340856205,1729950643193,-576.315,0.0005075,120]
[340856206,1729950643203,-576.314,0.0005075,120]
[340856207,1729950643213,-7500.0,0.0005075,120]
[340856208,1729950643222,-7500.0,0.0005075,120]
[340856209,1729950643231,-12500.0,0.0005075,120]
[340856210,1729950643241,-1504.0057748,0.00050889,2]
[340856211,1729950643251,-11892.5797003,0.00050924,2]
[340856212,1729950643260,-151.0,0.00050924,120]
[340856213,1729950643270,-2000.0,0.00050959,30]
[340856214,1729950643279,-151.0,0.00050959,120]
[340856215,1729950643289,-151.0,0.00050959,120]
[340856216,1729950643298,-4772.60920922,0.00051,120]
[340856218,1729950643308,-1000.0,0.00051,24]
[340856220,1729950643317,-150.0,0.00051,30]
[340856221,1729950643326,-7500.0,0.00051,120]
[340856222,1729950643336,-7500.0,0.00051,120]
[340856223,1729950643345,-151.0,0.00051,120]
[340856224,1729950643355,-151.0,0.00051,120]
[340856225,1729950643368,-151.0,0.00051,120]
[340856226,1729950643378,-151.0,0.00051,120]
[340856227,1729950643388,-151.0,0.00051,120]
[340856229,1729950643397,-192.581918,0.00051,120]
[340856231,1729950643407,-151.0,0.00051,120]
[340856233,1729950643416,-151.0,0.00051,120]
[340856235,1729950643426,-178.015531,0.00051,120]
[340856237,1729950643435,-151.0,0.00051,120]
[340856239,1729950643445,-151.0,0.00051,7]
[340856241,1729950643454,-12500.0,0.00051,120]
[340856243,1729950643463,-193.430116,0.00051,120]
[340856244,1729950643473,-193.430116,0.00051,120]
[340856246,1729950643482,-151.0,0.00051,120]
[340856248,1729950643492,-151.0,0.00051,120]
[340856250,1729950643502,-151.0,0.00051,120]
[340856252,1729950643511,-151.0,0.00051,120]
[340856254,1729950643520,-1733.63,0.000512,30]
[340856256,1729950643530,-1000.0,0.00051202,120]
[340856258,1729950643539,-2000.0,0.00051233,30]
[340856260,1729950643549,-7500.0,0.0005125,120]
[340856262,1729950643559,-7500.0,0.0005125,120]
[340856263,1729950643570,-12500.0,0.0005125,120]
[340856264,1729950643580,-152.0,0.0005133,4]
[340856265,1729950643589,-966.73,0.00051458,2]
[340856266,1729950643599,-1182.3626329,0.00051465,2]
[340856267,1729950643609,-7500.0,0.000515,120]
[340856268,1729950643620,-7500.0,0.000515,120]
[340856269,1729950643629,-12500.0,0.000515,120]
[340856270,1729950643639,-539.953584,0.000515,120]
[340856271,1729950643649,-151.0,0.000515,120]
[340856272,1729950643659,-539.953584,0.000515,120]
[340856273,1729950643758,-174.476946,0.000515,120]
[340856274,1729950643769,-174.476946,0.000515,120]
[340856275,1729950643780,-223.153046,0.000515,120]
[340856276,1729950643791,-223.153046,0.000515,120]
[340856277,1729950643801,-226.895858,0.000515,120]
[340856278,1729950643812,-226.895858,0.000515,120]
[340856279,1729950643822,-151.0,0.000515,120]
[340856280,1729950643832,-2000.0,0.00051507,30]
[340856281,1729950643841,-1658.87102438,0.00051666,60]
[340856282,1729950643850,-153.098784,0.00051666,120]
[340856283,1729950643862,-174.362886,0.00051666,120]
[340856284,1729950643872,-174.362886,0.00051666,120]
[340856285,1729950643882,-169.150758,0.00051666,120]
[340856286,1729950643892,-169.150758,0.00051666,120]
[340856287,1729950643903,-169.544829,0.00051666,120]
[340856288,1729950643912,-169.544829,0.00051666,120]
[340856289,1729950643922,-186.98732,0.00051666,120]
[340856290,1729950643932,-186.98732,0.00051666,120]
[340856291,1729950643942,-151.0,0.00051666,120]
[340856292,1729950643952,-151.0,0.00051666,120]
[340856293,1729950643962,-7500.0,0.0005175,120]
[340856294,1729950643971,-12500.0,0.0005175,120]
[340856295,1729950643981,-2000.0,0.00051781,30]
[340856296,1729950643990,-319.56255355,0.00051989,2]
[340856297,1729950644000,-250.0,0.00052,30]
[340856298,1729950644009,-184.34349344,0.00052,120]
[340856299,1729950644023,-26171.94577421,0.00052,30]
[340856300,1729950644032,-910.99372714,0.00052,120]
[340856301,1729950644041,-27400.0,0.00052,120]
[340856302,1729950644050,-7500.0,0.00052,120]
[340856303,1729950644060,-12500.0,0.00052,120]
[340856304,1729950644070,-2000.0,0.00052055,30]
[340856305,1729950644080,-2421.0,0.000521,2]
[340856306,1729950644091,-7500.0,0.0005225,120]
[340856307,1729950644101,-151.0,0.0005225,7]
[340856308,1729950644111,-12500.0,0.0005225,120]
[340856309,1729950644121,-1733.63,0.000525,30]
[340856310,1729950644130,-839.73,0.000525,60]
[340856311,1729950644139,-7087.19,0.000525,120]
[340856312,1729950644148,-12500.0,0.000525,120]
[340856313,1729950644158,-571.2098122,0.00053,2]
[340856314,1729950644168,-1000.0,0.00053,25]
[340856315,1729950644177,-250.0,0.00053,30]
[340856316,1729950644187,-1168.999,0.00053038,120]
[340856317,1729950644197,-1252.0,0.00053038,120]
[340856318,1729950644206,-3972.48,0.00053183,2]
[340856319,1729950644215,-86920.55286776,0.000533,2]
[340856320,1729950644226,-151.0,0.000533,120]
[340856321,1729950644236,-151.0,0.000533,120]
[340856322,1729950644245,-160.194629,0.000533,120]
[340856323,1729950644255,-151.0,0.000533,7]
[340856324,1729950644264,-193.430116,0.000533,120]
[340856325,1729950644274,-193.430116,0.000533,120]
[340856326,1729950644283,-151.0,0.000533,120]
[340856327,1729950644293,-151.0,0.000533,120]
[340856328,1729950644303,-151.0,0.000533,120]
[340856329,1729950644313,-151.0,0.000533,120]
[340856330,1729950644322,-183.27,0.0005333,2]
[340856331,1729950644332,-151.45,0.00053425,2]
[340856332,1729950644341,-151.0,0.000535,120]
[340856333,1729950644351,-151.0,0.000535,120]
[340856334,1729950644361,-657.87,0.000535,7]
[340856335,1729950644371,-2000.0,0.00053699,30]
[340856336,1729950644381,-966.73,0.00053721,2]
[340856337,1729950644390,-152.0,0.00053876,5]
[340856338,1729950644400,-839.73,0.000539,60]
[340856339,1729950644410,-12411.7195319,0.00053963,2]
[340856340,1729950644420,-151.0,0.00053963,120]
[340856341,1729950644429,-2000.0,0.00053973,30]
[340856342,1729950644439,-539.953584,0.00053973,120]
[340856343,1729950644448,-151.0,0.00053973,120]
[340856344,1729950644457,-539.953584,0.00053973,120]
[340856345,1729950644467,-174.476946,0.00053973,120]
[340856346,1729950644476,-174.476946,0.00053973,120]
[340856347,1729950644485,-223.153046,0.00053973,120]
[340856348,1729950644494,-223.153046,0.00053973,120]
[340856349,1729950644503,-226.895858,0.00053973,120]
[340856350,1729950644513,-226.895858,0.00053973,120]
[340856351,1729950644521,-151.0,0.00053973,120]
[340856352,1729950644530,-781.76278368,0.00053999,90]
[340856353,1729950644540,-100000.0,0.00054,60]
[340856354,1729950644549,-183.6,0.00054,120]
[340856355,1729950644559,-5000.0,0.00054,120]
[340856356,1729950644568,-6361.0,0.00054,120]
[340856357,1729950644578,-250.0,0.00054,30]
[340856358,1729950644587,-174.362886,0.00054,120]
[340856359,1729950644596,-174.362886,0.00054,120]
[340856360,1729950644605,-169.150758,0.00054,120]
[340856361,1729950644616,-169.150758,0.00054,120]
[340856362,1729950644624,-169.544829,0.00054,120]
[340856363,1729950644634,-169.544829,0.00054,120]
[340856364,1729950644643,-186.98732,0.00054,120]
[340856365,1729950644652,-186.98732,0.00054,120]
[340856366,1729950644662,-151.0,0.00054,120]
[340856367,1729950644671,-263.68122,0.00054,120]
[340856368,1729950644680,-319.56255355,0.00054217,2]
[340856369,1729950644689,-2000.0,0.00054247,30]
[340856370,1729950644699,-554.04,0.000545,120]
[340856371,1729950644708,-1733.63,0.000545,30]
[340856372,1729950644717,-2000.0,0.00054521,30]
[340856373,1729950644726,-1231.816823,0.00054703,2]
[340856374,1729950644735,-1566.9131989,0.00054703,2]
[340856375,1729950644746,-314094.0,0.0005474,30]
[340856376,1729950644755,-151.0,0.0005474,7]
[340856377,1729950644764,-151.0,0.0005474,120]
[340856378,1729950644773,-151.0,0.0005474,120]
[340856379,1729950644782,-151.0,0.0005474,120]
[340856380,1729950644791,-151.0,0.0005474,120]
[340856381,1729950644800,-151.0,0.0005474,7]
[340856382,1729950644809,-193.430116,0.0005474,120]
[340856383,1729950644818,-193.430116,0.0005474,120]
[340856384,1729950644829,-151.0,0.0005474,120]
[340856385,1729950644838,-539.953584,0.0005474,120]
[340856386,1729950644848,-151.0,0.0005474,120]
[340856387,1729950644857,-539.953584,0.0005474,120]
[340856388,1729950644868,-151.0,0.0005474,120]
[340856389,1729950644878,-174.476946,0.0005474,120]
[340856390,1729950644888,-174.476946,0.0005474,120]
[340856391,1729950644898,-204.748322,0.0005474,120]
[340856392,1729950644908,-151.0,0.0005474,120]
[340856393,1729950644917,-223.153046,0.0005474,120]
[340856394,1729950644927,-223.153046,0.0005474,120]
[340856395,1729950644936,-226.895858,0.0005474,120]
[340856396,1729950644946,-226.895858,0.0005474,120]
[340856397,1729950644957,-151.0,0.0005474,120]
[340856398,1729950644966,-12930.8593635,0.00054756,2]
[340856399,1729950644976,-174.362886,0.00054756,120]
[340856400,1729950644986,-174.362886,0.00054756,120]
[340856401,1729950644996,-169.150758,0.00054756,120]
[340856402,1729950645006,-169.150758,0.00054756,120]
[340856403,1729950645020,-169.544829,0.00054756,120]
[340856404,1729950645030,-169.544829,0.00054756,120]
[340856405,1729950645039,-186.98732,0.00054756,120]
[340856406,1729950645051,-186.98732,0.00054756,120]
[340856407,1729950645061,-151.0,0.00054756,120]
[340856408,1729950645072,-168.105768,0.00054794,120]
[340856409,1729950645083,-504.03838858,0.00054794,120]
[340856410,1729950645304,-500.0,0.00054794,120]
[340856411,1729950645314,-500.0,0.00054794,120]
[340856412,1729950645324,-502.00467564,0.00054794,120]
[340856413,1729950645334,-539.28533028,0.00054794,120]
[340856414,1729950645344,-500.0,0.00054794,120]
[340856415,1729950645354,-151.0,0.00054794,7]
[340856416,1729950645365,-500.0,0.00054794,120]
[340856417,1729950645375,-500.0,0.00054794,120]
[340856418,1729950645386,-500.0,0.00054794,120]
[340856419,1729950645397,-500.0,0.00054794,120]
[340856420,1729950645407,-357.26057526,0.00054794,120]
[340856421,1729950645417,-509.67491923,0.00054794,120]
[340856422,1729950645428,-500.0,0.00054794,120]
[340856423,1729950645438,-500.0,0.00054794,120]
[340856424,1729950645449,-501.50569895,0.00054794,2]
[340856425,1729950645459,-500.0,0.00054794,120]
[340856426,1729950645469,-500.0,0.00054794,120]
[340856427,1729950645479,-500.0,0.00054794,120]
[340856428,1729950645489,-500.0,0.00054794,120]
[340856429,1729950645499,-500.0,0.00054794,120]
[340856430,1729950645509,-562.69752676,0.00054794,120]
[340856431,1729950645519,-500.0,0.00054794,120]
[340856432,1729950645528,-500.0,0.00054794,120]
[340856433,1729950645538,-500.0,0.00054794,120]
[340856434,1729950645547,-500.0,0.00054794,120]
[340856435,1729950645558,-500.0,0.00054794,120]
[340856436,1729950645568,-500.0,0.00054794,120]
[340856437,1729950645578,-526.4753515,0.00054794,120]
[340856438,1729950645588,-500.0,0.00054794,120]
[340856439,1729950645598,-500.0,0.00054794,120]
[340856440,1729950645690,-500.0,0.00054794,120]
[340856441,1729950645701,-500.0,0.00054794,120]
[340856442,1729950645711,-500.0,0.00054794,120]
[340856443,1729950645721,-542.21193814,0.00054794,120]
[340856444,1729950645731,-500.0,0.00054794,120]
[340856445,1729950645741,-571.76842363,0.00054794,120]
[340856446,1729950645751,-500.0,0.00054794,120]
[340856447,1729950645761,-624.26331339,0.00054794,120]
[340856448,1729950645771,-500.0,0.00054794,120]
[340856449,1729950645781,-504.62426407,0.00054794,120]
[340856450,1729950645791,-500.0,0.00054794,120]
[340856451,1729950645800,-500.0,0.00054794,120]
[340856452,1729950645809,-502.27049962,0.00054794,120]
[340856453,1729950645819,-514.49250864,0.00054794,120]
[340856454,1729950645828,-522.36440216,0.00054794,120]
[340856455,1729950645838,-507.67115142,0.00054794,120]
[340856456,1729950645847,-513.22094375,0.00054794,120]
[340856457,1729950645856,-150.0,0.00054794,120]
[340856458,1729950645865,-217.70762941,0.00054794,120]
[340856459,1729950645875,-506.38636298,0.00054794,120]
[340856460,1729950645884,-500.0,0.00054794,120]
[340856461,1729950645894,-506.87382398,0.00054794,120]
[340856462,1729950645903,-511.3903945,0.00054794,120]
[340856463,1729950645912,-500.0,0.00054794,120]
[340856464,1729950645921,-500.0,0.00054794,120]
[340856465,1729950645931,-500.0,0.00054794,120]
[340856466,1729950645940,-213.98182177,0.00054794,120]
[340856467,1729950645950,-648.29442933,0.00054794,120]
[340856468,1729950645960,-595.48246922,0.00054794,120]
[340856469,1729950645970,-218.00123592,0.00054794,120]
[340856470,1729950645979,-500.0,0.00054794,120]
[340856471,1729950645988,-500.0,0.00054794,120]
[340856472,1729950645998,-531.87561413,0.00054794,120]
[340856473,1729950646007,-500.0,0.00054794,120]
[340856474,1729950646021,-500.0,0.00054794,120]
[340856475,1729950646030,-500.0,0.00054794,60]
[340856476,1729950646039,-508.21888472,0.00054794,120]
[340856477,1729950646048,-500.0,0.00054794,120]
[340856478,1729950646059,-500.0,0.00054794,120]
[340856479,1729950646068,-500.0,0.00054794,120]
[340856480,1729950646077,-507.52243083,0.00054794,120]
[340856481,1729950646086,-500.0,0.00054794,120]
[340856482,1729950646098,-509.49482387,0.00054794,120]
[340856483,1729950646109,-500.0,0.00054794,120]
[340856484,1729950646119,-519.67779118,0.00054794,120]
[340856485,1729950646128,-1000.0,0.00054794,120]
[340856486,1729950646137,-522.37151673,0.00054794,120]
[340856487,1729950646147,-500.0,0.00054794,120]
[340856488,1729950646157,-500.0,0.00054794,120]
[340856489,1729950646166,-500.0,0.00054794,120]
[340856490,1729950646175,-500.0,0.00054794,120]
[340856491,1729950646185,-500.0,0.00054794,120]
[340856492,1729950646194,-502.8224311,0.00054794,120]
[340856493,1729950646203,-500.0,0.00054794,120]
[340856494,1729950646213,-500.0,0.00054794,120]
[340856495,1729950646222,-500.0,0.00054794,120]
[340856496,1729950646231,-500.0,0.00054794,120]
[340856497,1729950646241,-500.0,0.00054794,120]
[340856498,1729950646250,-500.0,0.00054794,120]
[340856499,1729950646260,-500.0,0.00054794,120]
[340856500,1729950646269,-500.0,0.00054794,120]
[340856501,1729950646279,-500.0,0.00054794,120]
[340856502,1729950646288,-613.78367526,0.00054794,120]
[340856503,1729950646298,-500.0,0.00054794,120]
[340856504,1729950646307,-500.0,0.00054794,120]
[340856505,1729950646316,-500.0,0.00054794,120]
[340856506,1729950646326,-500.0,0.00054794,120]
[340856507,1729950646335,-500.0,0.00054794,120]
[340856508,1729950646344,-500.0,0.00054794,120]
[340856509,1729950646353,-500.0,0.00054794,120]
[340856510,1729950646363,-507.40219983,0.00054794,120]
[340856512,1729950646374,-523.51283293,0.00054794,120]
[340856514,1729950646384,-500.0,0.00054794,120]
[340856515,1729950646394,-173.8280151,0.00054794,120]
[340856516,1729950646403,-526.28904668,0.00054794,120]
[340856517,1729950646413,-500.0,0.00054794,120]
[340856518,1729950646423,-264.61136561,0.00054794,120]
[340856519,1729950646432,-500.0,0.00054794,120]
[340856520,1729950646441,-515.19408228,0.00054794,120]
[340856521,1729950646451,-500.0,0.00054794,120]
[340856522,1729950646460,-508.50265699,0.00054794,120]
[340856523,1729950646469,-500.0,0.00054794,120]
[340856524,1729950646478,-500.0,0.00054794,120]
[340856525,1729950646487,-559.88660674,0.00054794,120]
[340856526,1729950646496,-510.48777338,0.00054794,120]
[340856527,1729950646505,-500.0,0.00054794,120]
[340856528,1729950646515,-500.0,0.00054794,120]
[340856529,1729950646524,-536.82864264,0.00054794,120]
[340856530,1729950646533,-500.0,0.00054794,120]
[340856531,1729950646542,-500.0,0.00054794,120]
[340856532,1729950646551,-202.83224149,0.00054794,120]
[340856533,1729950646560,-537.93815554,0.00054794,120]
[340856534,1729950646569,-206.71762491,0.00054794,120]
[340856535,1729950646579,-500.0,0.00054794,120]
[340856536,1729950646588,-500.0,0.00054794,120]
[340856537,1729950646597,-500.0,0.00054794,120]
[340856538,1729950646606,-500.0,0.00054794,120]
[340856539,1729950646616,-500.0,0.00054794,120]
[340856540,1729950646625,-500.0,0.00054794,120]
[340856541,1729950646635,-500.0,0.00054794,120]
[340856542,1729950646644,-500.0,0.00054794,120]
[340856543,1729950646653,-500.0,0.00054794,120]
[340856544,1729950646663,-500.0,0.00054794,120]
[340856545,1729950646672,-578.2159644,0.00054794,120]
[340856546,1729950646681,-500.0,0.00054794,120]
[340856547,1729950646690,-500.0,0.00054794,120]
[340856548,1729950646699,-508.71742418,0.00054794,120]
[340856549,1729950646709,-500.0,0.00054794,120]
[340856550,1729950646718,-500.0,0.00054794,120]
[340856551,1729950646727,-528.56883916,0.00054794,120]
[340856552,1729950646736,-500.0,0.00054794,120]
[340856553,1729950646746,-500.0,0.00054794,120]
[340856554,1729950646755,-500.0,0.00054794,120]
[340856555,1729950646764,-500.0,0.00054794,120]
[340856556,1729950646773,-522.25090193,0.00054794,120]
[340856557,1729950646782,-500.0,0.00054794,120]
[340856558,1729950646792,-500.0,0.00054794,120]
[340856559,1729950646801,-500.0,0.00054794,120]
[340856560,1729950646810,-500.0,0.00054794,120]
[340856561,1729950646819,-402.75619404,0.00054794,120]
[340856562,1729950646828,-500.0,0.00054794,120]
[340856563,1729950646838,-500.0,0.00054794,120]
[340856564,1729950646847,-500.0,0.00054794,120]
[340856565,1729950646856,-500.0,0.00054794,120]
[340856566,1729950646867,-525.02177436,0.00054794,120]
[340856567,1729950646877,-524.38703236,0.00054794,120]
[340856568,1729950646887,-500.0,0.00054794,120]
[340856569,1729950646896,-517.80789117,0.00054794,120]
[340856570,1729950646905,-500.0,0.00054794,120]
[340856571,1729950646914,-500.0,0.00054794,120]
[340856572,1729950646924,-369.0095833,0.00054794,14]
[340856573,1729950646933,-525.61655126,0.00054794,120]
[340856574,1729950646942,-500.0,0.00054794,120]
[340856575,1729950646951,-555.42656142,0.00054794,120]
[340856576,1729950646960,-500.0,0.00054794,120]
[340856577,1729950646969,-500.0,0.00054794,120]
[340856578,1729950646984,-500.0,0.00054794,120]
[340856579,1729950646994,-554.6546977,0.00054794,120]
[340856580,1729950647003,-500.0,0.00054794,120]
[340856581,1729950647013,-510.30866944,0.00054794,120]
[340856582,1729950647024,-170.63738175,0.00054794,120]
[340856583,1729950647033,-558.4407827,0.00054794,120]
[340856584,1729950647043,-622.21,0.00054794,120]
[340856585,1729950647052,-500.0,0.00054794,7]
[340856586,1729950647062,-500.0,0.00054794,120]
[340856588,1729950647071,-550.72225941,0.00054794,120]
[340856589,1729950647080,-521.95798369,0.00054794,120]
[340856590,1729950647089,-556.61010398,0.00054794,120]
[340856591,1729950647100,-583.1700784,0.00054794,120]
[340856592,1729950647110,-507.19849157,0.00054794,120]
[340856593,1729950647120,-500.0,0.00054794,120]
[340856594,1729950647129,-585.53525416,0.00054794,120]
[340856595,1729950647139,-500.0,0.00054794,120]
[340856596,1729950647222,-500.0,0.00054794,120]
[340856597,1729950647231,-500.0,0.00054794,120]